fUSD/lending_fUSD_20240329
["ID","MTS","AMOUNT","RATE_DAILY","PERIOD"]
[320978198,1711726290364,-765.17,0.0005315,120]
[320978199,1711726290373,-890.38,0.0005315,120]
[320978200,1711726290382,-553.36,0.0005315,120]
[320978201,1711726290391,-8521.15,0.0005315,120]
[320978202,1711726290400,-500.0,0.0005315,120]
[320978203,1711726290409,-1919.3,0.0005315,120]
[320978204,1711726290418,-648.88,0.0005315,120]
[320978205,1711726290427,-2207.99,0.0005315,120]
[320978206,1711726290436,-500.0,0.0005315,120]
[320978207,1711726290445,-1309.66,0.0005315,120]
[320978208,1711726290454,-500.0,0.0005315,120]
[320978209,1711726290463,-557.08,0.0005315,120]
[320978210,1711726290472,-1108.08,0.0005315,120]
[320978211,1711726290481,-1833.17,0.0005315,120]
[320978212,1711726290491,-607.25,0.0005315,120]
[320978213,1711726290500,-815.81,0.0005315,120]
[320978214,1711726290509,-862.41,0.0005315,120]
[320978215,1711726290518,-500.0,0.0005315,120]
[320978216,1711726290527,-1018.76,0.0005315,120]
[320978217,1711726290536,-500.0,0.0005315,120]
[320978218,1711726290547,-500.0,0.0005315,120]
[320978219,1711726290556,-1702.99,0.0005315,120]
[320978220,1711726290565,-1004.77,0.0005315,120]
[320978221,1711726290578,-1165.7,0.0005315,120]
[320978222,1711726290588,-696.93,0.0005315,120]
[320978223,1711726290597,-500.0,0.0005315,120]
[320978224,1711726290606,-1354.93,0.0005315,21]
[320978225,1711726290615,-500.0,0.0005315,120]
[320978226,1711726290625,-977.65,0.0005315,120]
[320978227,1711726290634,-1113.41,0.0005315,120]
[320978228,1711726290643,-500.0,0.0005315,120]
[320978229,1711726290653,-3333.95,0.0005315,120]
[320978230,1711726290662,-572.67,0.0005315,120]
[320978231,1711726290672,-683.76,0.0005315,120]
[320978232,1711726290681,-7484.68,0.0005315,120]
[320978233,1711726290691,-1354.15,0.0005315,120]
[320978234,1711726290700,-1280.61,0.0005315,120]
[320978235,1711726290710,-213.85,0.0005315,120]
[320978236,1711726290719,-553.1,0.0005315,120]
[320978237,1711726290729,-3298.9,0.0005315,120]
[320978238,1711726290738,-3130.3,0.0005315,120]
[320978239,1711726290750,-2135.45,0.0005315,120]
[320978240,1711726290759,-1018.52,0.0005315,120]
[320978241,1711726290768,-2568.4,0.0005315,120]
[320978242,1711726290778,-594.87,0.0005315,120]
[320978243,1711726290787,-824.29,0.0005315,120]
[320978244,1711726290797,-628.61,0.0005315,120]
[320978245,1711726290806,-1054.95,0.0005315,120]
[320978246,1711726290815,-947.76,0.0005315,120]
[320978247,1711726290827,-805.33,0.0005315,120]
[320978248,1711726290837,-500.0,0.0005315,120]
[320978249,1711726290846,-365.13166199,0.0005315,120]
[320978250,1711726290855,-652.14,0.0005315,120]
[320978251,1711726290865,-500.0,0.0005315,120]
[320978252,1711726290874,-1684.07,0.0005315,120]
[320978253,1711726290884,-1222.42,0.0005315,120]
[320978254,1711726290893,-500.0,0.0005315,120]
[320978255,1711726290902,-500.0,0.0005315,120]
[320978256,1711726290912,-500.0,0.0005315,120]
[320978257,1711726290921,-647.43,0.0005315,120]
[320978258,1711726290931,-637.47,0.0005315,120]
[320978259,1711726290940,-929.07,0.0005315,120]
[320978260,1711726290950,-500.0,0.0005315,120]
[320978261,1711726290959,-1752.94,0.0005315,120]
[320978262,1711726290968,-506.23,0.0005315,120]
[320978263,1711726290977,-1482.27,0.0005315,120]
[320978264,1711726290987,-1080.07,0.0005315,120]
[320978265,1711726290996,-500.0,0.0005315,120]
[320978266,1711726291005,-500.0,0.0005315,120]
[320978267,1711726291016,-917.61,0.0005315,120]
[320978268,1711726291025,-824.53,0.0005315,120]
[320978269,1711726291034,-641.26,0.0005315,120]
[320978270,1711726291044,-579.18,0.0005315,120]
[320978271,1711726291054,-572.87,0.0005315,120]
[320978272,1711726291063,-1389.6,0.0005315,120]
[320978273,1711726291074,-150.0,0.00053276,14]
[320978274,1711726291083,-150.0,0.00053276,14]
[320978275,1711726291093,-150.0,0.00053276,14]
[320978276,1711726291102,-150.0,0.00053276,14]
[320978277,1711726291112,-1170.77280023,0.00053291,120]
[320978278,1711726291121,-440.95056199,0.0005331,2]
[320978279,1711726291131,-1493.20975127,0.00053407,120]
[320978280,1711726291140,-151.22451208,0.00053415,57]
[320978281,1711726291151,-3143.62093361,0.00053424,31]
[320978282,1711726291161,-2694.67560404,0.00053424,120]
[320978283,1711726291170,-153.6993503,0.00053424,2]
[320978284,1711726291179,-500.0,0.00053424,120]
[320978285,1711726291188,-500.0,0.00053424,120]
[320978286,1711726291197,-500.0,0.00053424,120]
[320978287,1711726291206,-500.0,0.00053424,2]
[320978288,1711726291215,-290.03816739,0.00053424,120]
[320978289,1711726291224,-639.8957938,0.00053424,120]
[320978290,1711726291235,-900.75,0.00053424,120]
[320978291,1711726291244,-500.0,0.00053424,120]
[320978292,1711726291253,-258.97482206,0.00053424,120]
[320978293,1711726291262,-500.0,0.00053424,120]
[320978294,1711726291271,-541.66,0.00053424,120]
[320978295,1711726291280,-500.0,0.00053424,120]
[320978296,1711726291290,-164.66,0.00053424,120]
[320978297,1711726291298,-500.0,0.00053424,120]
[320978298,1711726291308,-500.0,0.00053424,120]
[320978299,1711726291316,-500.0,0.00053424,120]
[320978300,1711726291327,-500.0,0.00053424,120]
[320978301,1711726291336,-500.0,0.00053424,120]
[320978302,1711726291346,-500.0,0.00053424,120]
[320978303,1711726291355,-500.0,0.00053424,120]
[320978304,1711726291365,-524.41,0.00053424,120]
[320978305,1711726291375,-500.0,0.00053424,120]
[320978306,1711726291384,-593.93,0.00053424,120]
[320978307,1711726291393,-174.95,0.00053424,120]
[320978308,1711726291402,-2105.64,0.00053424,120]
[320978309,1711726291411,-500.0,0.00053424,120]
[320978310,1711726291420,-832.0,0.00053424,120]
[320978311,1711726291429,-500.0,0.00053424,120]
[320978312,1711726291439,-500.0,0.00053424,120]
[320978313,1711726291448,-500.0,0.00053424,120]
[320978314,1711726291458,-500.0,0.00053424,120]
[320978315,1711726291468,-500.0,0.00053424,120]
[320978316,1711726291476,-500.0,0.00053424,120]
[320978317,1711726291486,-500.0,0.00053424,120]
[320978318,1711726291495,-500.0,0.00053424,120]
[320978319,1711726291504,-500.0,0.00053424,120]
[320978320,1711726291514,-169.96,0.00053424,120]
[320978321,1711726291523,-500.0,0.00053424,120]
[320978322,1711726291533,-500.0,0.00053424,120]
[320978323,1711726291542,-1095.45,0.00053424,120]
[320978324,1711726291551,-500.0,0.00053424,120]
[320978325,1711726291561,-1919.57,0.00053424,120]
[320978326,1711726291571,-549.37406121,0.00053424,120]
[320978327,1711726291581,-500.0,0.00053424,120]
[320978328,1711726291590,-790.31,0.00053424,120]
[320978329,1711726291599,-500.0,0.00053424,120]
[320978330,1711726291609,-3250.79,0.00053424,120]
[320978331,1711726291618,-543.43,0.00053424,120]
[320978332,1711726291629,-2026.92,0.00053424,120]
[320978333,1711726291638,-2794.01,0.00053424,120]
[320978334,1711726291647,-508.65,0.00053424,120]
[320978335,1711726291656,-543.18,0.00053424,120]
[320978336,1711726291665,-500.0,0.00053424,120]
[320978337,1711726291674,-725.25,0.00053424,120]
[320978338,1711726291683,-500.0,0.00053424,120]
[320978339,1711726291692,-500.0,0.00053424,120]
[320978340,1711726291702,-500.0,0.00053424,120]
[320978341,1711726291711,-1985.65,0.00053424,120]
[320978342,1711726291720,-500.0,0.00053424,120]
[320978343,1711726291730,-778.03,0.00053424,120]
[320978344,1711726291740,-966.8,0.00053424,120]
[320978345,1711726291749,-15575.03,0.00053424,120]
[320978346,1711726291759,-500.0,0.00053424,120]
[320978347,1711726291768,-1347.71,0.00053424,120]
[320978348,1711726291778,-500.0,0.00053424,120]
[320978349,1711726291787,-1542.42,0.00053424,120]
[320978350,1711726291796,-500.0,0.00053424,120]
[320978351,1711726291805,-1449.82,0.00053424,120]
[320978352,1711726291814,-2716.26,0.00053424,120]
[320978353,1711726291825,-764.96,0.00053424,120]
[320978354,1711726291835,-1663.53,0.00053424,120]
[320978355,1711726291845,-500.0,0.00053424,120]
[320978356,1711726291854,-1151.51,0.00053424,120]
[320978357,1711726291863,-500.0,0.00053424,120]
[320978358,1711726291871,-500.0,0.00053424,120]
[320978359,1711726291880,-769.64,0.00053424,120]
[320978360,1711726291890,-1016.62,0.00053424,120]
[320978361,1711726291899,-784.23,0.00053424,120]
[320978362,1711726291908,-438.12,0.00053424,120]
[320978363,1711726291918,-500.0,0.00053424,120]
[320978364,1711726291927,-1622.26,0.00053424,120]
[320978365,1711726291936,-500.0,0.00053424,120]
[320978366,1711726291946,-1424.61,0.00053424,120]
[320978367,1711726291954,-500.0,0.00053424,120]
[320978368,1711726291963,-815.78,0.00053424,120]
[320978369,1711726291973,-500.0,0.00053424,120]
[320978370,1711726291982,-500.0,0.00053424,120]
[320978371,1711726291991,-992.25,0.00053424,120]
[320978372,1711726292001,-11718.94,0.00053424,120]
[320978373,1711726292011,-743.51,0.00053424,120]
[320978374,1711726292021,-765.17,0.00053424,120]
[320978375,1711726292030,-890.38,0.00053424,120]
[320978376,1711726292039,-8521.15,0.00053424,120]
[320978377,1711726292049,-553.36,0.00053424,120]
[320978378,1711726292058,-500.0,0.00053424,120]
[320978379,1711726292068,-1919.3,0.00053424,120]
[320978380,1711726292080,-648.88,0.00053424,120]
[320978381,1711726292090,-2207.99,0.00053424,120]
[320978382,1711726292100,-500.0,0.00053424,120]
[320978383,1711726292109,-1309.66,0.00053424,120]
[320978384,1711726292119,-500.0,0.00053424,120]
[320978385,1711726292130,-557.08,0.00053424,120]
[320978386,1711726292139,-1108.08,0.00053424,120]
[320978387,1711726292149,-1833.17,0.00053424,120]
[320978388,1711726292161,-607.25,0.00053424,120]
[320978389,1711726292285,-815.81,0.00053424,120]
[320978390,1711726292296,-862.41,0.00053424,120]
[320978391,1711726292306,-500.0,0.00053424,120]
[320978392,1711726292315,-1018.76,0.00053424,120]
[320978393,1711726292329,-500.0,0.00053424,120]
[320978394,1711726292338,-500.0,0.00053424,120]
[320978395,1711726292348,-1702.99,0.00053424,120]
[320978396,1711726292358,-1004.77,0.00053424,120]
[320978397,1711726292367,-1165.7,0.00053424,120]
[320978398,1711726292377,-696.93,0.00053424,120]
[320978399,1711726292387,-500.0,0.00053424,120]
[320978400,1711726292396,-1354.93,0.00053424,21]
[320978401,1711726292407,-500.0,0.00053424,120]
[320978402,1711726292417,-977.65,0.00053424,120]
[320978403,1711726292427,-1113.41,0.00053424,120]
[320978404,1711726292437,-500.0,0.00053424,120]
[320978405,1711726292447,-3333.95,0.00053424,120]
[320978406,1711726292457,-572.67,0.00053424,120]
[320978407,1711726292467,-683.76,0.00053424,120]
[320978408,1711726292477,-7484.68,0.00053424,120]
[320978409,1711726292487,-1354.15,0.00053424,120]
[320978410,1711726292497,-1280.61,0.00053424,120]
[320978411,1711726292506,-553.1,0.00053424,120]
[320978412,1711726292516,-3298.9,0.00053424,120]
[320978413,1711726292526,-3130.3,0.00053424,120]
[320978414,1711726292535,-1018.52,0.00053424,120]
[320978415,1711726292545,-2135.45,0.00053424,120]
[320978416,1711726292554,-2568.4,0.00053424,120]
[320978417,1711726292563,-594.87,0.00053424,120]
[320978418,1711726292574,-824.29,0.00053424,120]
[320978419,1711726292584,-628.61,0.00053424,120]
[320978420,1711726292593,-1054.95,0.00053424,120]
[320978421,1711726292602,-947.76,0.00053424,120]
[320978422,1711726292612,-805.33,0.00053424,120]
[320978423,1711726292621,-500.0,0.00053424,120]
[320978424,1711726292631,-652.14,0.00053424,120]
[320978425,1711726292641,-1405.95,0.00053424,120]
[320978426,1711726292650,-500.0,0.00053424,120]
[320978427,1711726292660,-1684.07,0.00053424,120]
[320978428,1711726292669,-1222.42,0.00053424,120]
[320978429,1711726292679,-369.12720754,0.00053424,120]
[320978430,1711726292688,-500.0,0.00053424,120]
[320978431,1711726292698,-500.0,0.00053424,120]
[320978432,1711726292708,-647.43,0.00053424,120]
[320978433,1711726292717,-637.47,0.00053424,120]
[320978434,1711726292727,-929.07,0.00053424,120]
[320978435,1711726292736,-500.0,0.00053424,120]
[320978436,1711726292745,-1752.94,0.00053424,120]
[320978437,1711726292755,-506.23,0.00053424,120]
[320978438,1711726292764,-1482.27,0.00053424,120]
[320978439,1711726292774,-1080.07,0.00053424,120]
[320978440,1711726292783,-500.0,0.00053424,120]
[320978441,1711726292792,-917.61,0.00053424,120]
[320978442,1711726292802,-500.0,0.00053424,120]
[320978443,1711726292811,-824.53,0.00053424,120]
[320978444,1711726292823,-641.26,0.00053424,120]
[320978445,1711726292833,-579.18,0.00053424,120]
[320978446,1711726292844,-572.87,0.00053424,120]
[320978447,1711726292854,-1389.6,0.00053424,120]
[320978448,1711726292865,-227.38888889,0.00053425,120]
[320978449,1711726292875,-2000.0,0.00053429,15]
[320978450,1711726292885,-200.0,0.00053429,15]
[320978451,1711726292895,-40124.30435578,0.00053527,2]
[320978452,1711726292905,-1493.20975128,0.00053529,120]
[320978453,1711726292914,-150.44,0.000536,30]
[320978454,1711726292924,-150.0,0.00053697,14]
[320978455,1711726292934,-500.0,0.00053698,120]
[320978456,1711726292946,-500.0,0.00053698,120]
[320978457,1711726292956,-500.0,0.00053698,120]
[320978458,1711726292966,-500.0,0.00053698,2]
[320978459,1711726292975,-900.75,0.00053698,120]
[320978460,1711726292984,-159.69,0.00053698,120]
[320978461,1711726292993,-500.0,0.00053698,120]
[320978462,1711726293002,-541.66,0.00053698,120]
[320978463,1711726293012,-453.2543755,0.00053698,120]
[320978464,1711726293022,-306.9,0.00053698,120]
[320978465,1711726293031,-500.0,0.00053698,120]
[320978466,1711726293041,-558.0107647,0.00053698,120]
[320978467,1711726293051,-500.0,0.00053698,120]
[320978468,1711726293060,-500.0,0.00053698,120]
[320978469,1711726293072,-500.0,0.00053698,120]
[320978470,1711726293082,-500.0,0.00053698,120]
[320978471,1711726293092,-524.41,0.00053698,120]
[320978472,1711726293102,-500.0,0.00053698,120]
[320978473,1711726293111,-593.93,0.00053698,120]
[320978474,1711726293120,-174.95,0.00053698,120]
[320978475,1711726293132,-2105.64,0.00053698,120]
[320978476,1711726293142,-500.0,0.00053698,120]
[320978477,1711726293152,-832.0,0.00053698,120]
[320978478,1711726293161,-500.0,0.00053698,120]
[320978479,1711726293171,-500.0,0.00053698,120]
[320978480,1711726293180,-500.0,0.00053698,120]
[320978481,1711726293189,-500.0,0.00053698,120]
[320978482,1711726293199,-500.0,0.00053698,120]
[320978483,1711726293208,-500.0,0.00053698,120]
[320978484,1711726293218,-500.0,0.00053698,120]
[320978485,1711726293227,-500.0,0.00053698,120]
[320978486,1711726293236,-500.0,0.00053698,120]
[320978487,1711726293245,-500.0,0.00053698,120]
[320978488,1711726293256,-465.94652819,0.00053698,120]
[320978489,1711726293266,-1095.45,0.00053698,120]
[320978490,1711726293276,-500.0,0.00053698,120]
[320978491,1711726293286,-1919.57,0.00053698,120]
[320978492,1711726293295,-500.0,0.00053698,120]
[320978493,1711726293305,-790.31,0.00053698,120]
[320978494,1711726293313,-500.0,0.00053698,120]
[320978495,1711726293328,-3250.79,0.00053698,120]
[320978496,1711726293337,-543.43,0.00053698,120]
[320978497,1711726293346,-2026.92,0.00053698,120]
[320978498,1711726293356,-2794.01,0.00053698,120]
[320978499,1711726293365,-508.65,0.00053698,120]
[320978500,1711726293373,-543.18,0.00053698,120]
[320978501,1711726293383,-725.25,0.00053698,120]
[320978502,1711726293393,-500.0,0.00053698,120]
[320978503,1711726293403,-500.0,0.00053698,120]
[320978504,1711726293412,-500.0,0.00053698,120]
[320978505,1711726293422,-500.0,0.00053698,120]
[320978506,1711726293431,-1985.65,0.00053698,120]
[320978507,1711726293440,-433.58611786,0.00053698,120]
[320978508,1711726293451,-778.03,0.00053698,120]
[320978509,1711726293460,-966.8,0.00053698,120]
[320978510,1711726293469,-15575.03,0.00053698,120]
[320978511,1711726293478,-465.92004915,0.00053698,120]
[320978512,1711726293488,-1347.71,0.00053698,120]
[320978513,1711726293498,-500.0,0.00053698,120]
[320978514,1711726293508,-1542.42,0.00053698,120]
[320978515,1711726293518,-500.0,0.00053698,120]
[320978516,1711726293527,-1449.82,0.00053698,120]
[320978517,1711726293538,-2716.26,0.00053698,120]
[320978518,1711726293548,-764.96,0.00053698,120]
[320978519,1711726293557,-1663.53,0.00053698,120]
[320978520,1711726293567,-500.0,0.00053698,120]
[320978521,1711726293581,-1151.51,0.00053698,120]
[320978522,1711726293591,-500.0,0.00053698,120]
[320978523,1711726293600,-500.0,0.00053698,120]
[320978524,1711726293609,-769.64,0.00053698,120]
[320978525,1711726293618,-1016.62,0.00053698,120]
[320978526,1711726293627,-784.23,0.00053698,120]
[320978527,1711726293637,-617.91,0.00053698,120]
[320978528,1711726293646,-1622.26,0.00053698,120]
[320978529,1711726293656,-500.0,0.00053698,120]
[320978530,1711726293665,-1424.61,0.00053698,120]
[320978531,1711726293675,-500.0,0.00053698,120]
[320978532,1711726293685,-815.78,0.00053698,120]
[320978533,1711726293695,-500.0,0.00053698,120]
[320978534,1711726293705,-500.0,0.00053698,120]
[320978535,1711726293714,-992.25,0.00053698,120]
[320978536,1711726293723,-11718.94,0.00053698,120]
[320978537,1711726293733,-743.51,0.00053698,120]
[320978538,1711726293743,-765.17,0.00053698,120]
[320978539,1711726293752,-890.38,0.00053698,120]
[320978540,1711726293762,-8521.15,0.00053698,120]
[320978541,1711726293772,-553.36,0.00053698,120]
[320978542,1711726293781,-500.0,0.00053698,120]
[320978543,1711726293790,-1919.3,0.00053698,120]
[320978544,1711726293800,-648.88,0.00053698,120]
[320978545,1711726293810,-2207.99,0.00053698,120]
[320978546,1711726293819,-500.0,0.00053698,120]
[320978547,1711726293831,-1309.66,0.00053698,120]
[320978548,1711726293840,-500.0,0.00053698,120]
[320978549,1711726293850,-557.08,0.00053698,120]
[320978550,1711726293859,-1108.08,0.00053698,120]
[320978551,1711726293868,-1833.17,0.00053698,120]
[320978552,1711726293877,-607.25,0.00053698,120]
[320978553,1711726293887,-815.81,0.00053698,120]
[320978554,1711726293896,-862.41,0.00053698,120]
[320978555,1711726293905,-500.0,0.00053698,120]
[320978556,1711726293915,-1018.76,0.00053698,120]
[320978557,1711726293925,-500.0,0.00053698,120]
[320978558,1711726293934,-1702.99,0.00053698,120]
[320978559,1711726293943,-627.56622263,0.00053698,120]
[320978560,1711726294315,-538.13377737,0.00053698,120]
[320978561,1711726294328,-1004.77,0.00053698,120]
[320978562,1711726294338,-696.93,0.00053698,120]
[320978563,1711726294347,-500.0,0.00053698,120]
[320978564,1711726294356,-1354.93,0.00053698,21]
[320978565,1711726294366,-500.0,0.00053698,120]
[320978566,1711726294375,-977.65,0.00053698,120]
[320978567,1711726294385,-1113.41,0.00053698,120]
[320978568,1711726294394,-500.0,0.00053698,120]
[320978569,1711726294404,-3333.95,0.00053698,120]
[320978570,1711726294413,-572.67,0.00053698,120]
[320978571,1711726294423,-683.76,0.00053698,120]
[320978572,1711726294433,-7484.68,0.00053698,120]
[320978573,1711726294443,-1354.15,0.00053698,120]
[320978574,1711726294452,-1280.61,0.00053698,120]
[320978575,1711726294462,-553.1,0.00053698,120]
[320978576,1711726294472,-3298.9,0.00053698,120]
[320978577,1711726294482,-3130.3,0.00053698,120]
[320978578,1711726294492,-2135.45,0.00053698,120]
[320978579,1711726294502,-1018.52,0.00053698,120]
[320978580,1711726294512,-2568.4,0.00053698,120]
[320978581,1711726294522,-594.87,0.00053698,120]
[320978582,1711726294532,-824.29,0.00053698,120]
[320978583,1711726294543,-628.61,0.00053698,120]
[320978584,1711726294552,-1054.95,0.00053698,120]
[320978585,1711726294562,-947.76,0.00053698,120]
[320978586,1711726294574,-805.33,0.00053698,120]
[320978587,1711726294584,-182.85698802,0.00053698,120]
[320978588,1711726294594,-652.14,0.00053698,120]
[320978589,1711726294604,-500.0,0.00053698,120]
[320978590,1711726294613,-1684.07,0.00053698,120]
[320978591,1711726294623,-1222.42,0.00053698,120]
[320978592,1711726294633,-500.0,0.00053698,120]
[320978593,1711726294643,-500.0,0.00053698,120]
[320978594,1711726294653,-647.43,0.00053698,120]
[320978595,1711726294663,-637.47,0.00053698,120]
[320978596,1711726294672,-929.07,0.00053698,120]
[320978597,1711726294683,-500.0,0.00053698,120]
[320978598,1711726294692,-1752.94,0.00053698,120]
[320978599,1711726294702,-506.23,0.00053698,120]
[320978600,1711726294712,-1482.27,0.00053698,120]
[320978601,1711726294721,-1080.07,0.00053698,120]
[320978602,1711726294732,-500.0,0.00053698,120]
[320978603,1711726294743,-917.61,0.00053698,120]
[320978604,1711726294754,-500.0,0.00053698,120]
[320978605,1711726294767,-824.53,0.00053698,120]
[320978606,1711726294778,-641.26,0.00053698,120]
[320978607,1711726294789,-579.18,0.00053698,120]
[320978608,1711726294800,-572.87,0.00053698,120]
[320978609,1711726294810,-1389.6,0.00053698,120]
[320978610,1711726294823,-211.02,0.000537,7]
[320978611,1711726294834,-152.41256319,0.00053723,60]
[320978612,1711726294845,-389.46995233,0.0005375,30]
[320978613,1711726294855,-152.41256319,0.00053801,60]
[320978614,1711726294867,-150.5,0.0005387,15]
[320978615,1711726294877,-150.5,0.0005388,15]
[320978616,1711726294888,-150.5,0.0005389,15]
[320978617,1711726294898,-1927.0,0.000539,18]
[320978618,1711726294907,-500.0,0.000539,19]
[320978619,1711726294918,-500.0,0.00053972,120]
[320978620,1711726294928,-500.0,0.00053972,120]
[320978621,1711726294937,-246.020203,0.00053972,120]
[320978622,1711726294946,-500.0,0.00053972,2]
[320978623,1711726294955,-900.75,0.00053972,120]
[320978624,1711726294964,-500.0,0.00053972,120]
[320978625,1711726294973,-541.66,0.00053972,120]
[320978626,1711726294983,-500.0,0.00053972,120]
[320978627,1711726294992,-500.0,0.00053972,120]
[320978628,1711726295001,-500.0,0.00053972,120]
[320978629,1711726295010,-585.5673032,0.00053972,120]
[320978630,1711726295020,-500.0,0.00053972,120]
[320978631,1711726295030,-524.41,0.00053972,120]
[320978632,1711726295039,-500.0,0.00053972,120]
[320978633,1711726295049,-593.93,0.00053972,120]
[320978634,1711726295058,-174.95,0.00053972,120]
[320978635,1711726295068,-2105.64,0.00053972,120]
[320978636,1711726295080,-610.96605817,0.00053972,120]
[320978637,1711726295090,-832.0,0.00053972,120]
[320978638,1711726295100,-500.0,0.00053972,120]
[320978639,1711726295110,-500.0,0.00053972,120]
[320978640,1711726295120,-500.0,0.00053972,120]
[320978641,1711726295131,-500.0,0.00053972,120]
[320978642,1711726295141,-500.0,0.00053972,120]
[320978643,1711726295150,-500.0,0.00053972,120]
[320978644,1711726295162,-500.0,0.00053972,120]
[320978645,1711726295173,-500.0,0.00053972,120]
[320978646,1711726295184,-636.66,0.00053972,120]
[320978647,1711726295194,-500.0,0.00053972,120]
[320978648,1711726295204,-1095.45,0.00053972,120]
[320978649,1711726295214,-500.0,0.00053972,120]
[320978650,1711726295224,-1919.57,0.00053972,120]
[320978651,1711726295236,-500.0,0.00053972,120]
[320978652,1711726295245,-790.31,0.00053972,120]
[320978653,1711726295255,-500.0,0.00053972,120]
[320978654,1711726295266,-3250.79,0.00053972,120]
[320978655,1711726295277,-543.43,0.00053972,120]
[320978656,1711726295287,-2026.92,0.00053972,120]
[320978657,1711726295297,-2794.01,0.00053972,120]
[320978658,1711726295307,-508.65,0.00053972,120]
[320978659,1711726295317,-543.18,0.00053972,120]
[320978660,1711726295330,-725.25,0.00053972,120]
[320978661,1711726295339,-500.0,0.00053972,120]
[320978662,1711726295349,-500.0,0.00053972,120]
[320978663,1711726295359,-500.0,0.00053972,120]
[320978664,1711726295370,-511.26,0.00053972,120]
[320978665,1711726295380,-1985.65,0.00053972,120]
[320978666,1711726295391,-778.03,0.00053972,120]
[320978667,1711726295402,-966.8,0.00053972,120]
[320978668,1711726295413,-15575.03,0.00053972,120]
[320978669,1711726295423,-1347.71,0.00053972,120]
[320978670,1711726295433,-500.0,0.00053972,120]
[320978671,1711726295444,-1542.42,0.00053972,120]
[320978672,1711726295454,-500.0,0.00053972,120]
[320978673,1711726295464,-1449.82,0.00053972,120]
[320978674,1711726295474,-2716.26,0.00053972,120]
[320978675,1711726295484,-764.96,0.00053972,120]
[320978676,1711726295495,-1663.53,0.00053972,120]
[320978677,1711726295505,-500.0,0.00053972,120]
[320978678,1711726295515,-1151.51,0.00053972,120]
[320978679,1711726295526,-435.19,0.00053972,120]
[320978680,1711726295536,-638.82240366,0.00053972,120]
[320978681,1711726295546,-769.64,0.00053972,120]
[320978682,1711726295557,-1016.62,0.00053972,120]
[320978683,1711726295567,-784.23,0.00053972,120]
[320978684,1711726295579,-1622.26,0.00053972,120]
[320978685,1711726295590,-500.0,0.00053972,120]
[320978686,1711726295600,-1424.61,0.00053972,120]
[320978687,1711726295610,-500.0,0.00053972,120]
[320978688,1711726295620,-815.78,0.00053972,120]
[320978689,1711726295630,-500.0,0.00053972,120]
[320978690,1711726295641,-500.0,0.00053972,120]
[320978691,1711726295651,-992.25,0.00053972,120]
[320978692,1711726295661,-11718.94,0.00053972,120]
[320978693,1711726295671,-743.51,0.00053972,120]
[320978694,1711726295681,-765.17,0.00053972,120]
[320978695,1711726295690,-890.38,0.00053972,120]
[320978696,1711726295702,-8521.15,0.00053972,120]
[320978697,1711726295712,-553.36,0.00053972,120]